{"text_format":"1","workbook":"xlsx","n_sheets":2,"sheets":["調査票","情報セキュリティ自社診断票"],"not_rendered":{"charts":1,"images":0,"macros":1,"external_links":5,"defined_names":84,"comments":1,"pivot_tables":0},"unopened":[],"bounds":{"document_bytes":16777216,"sheet_cells":100000,"rows_first":2000,"rows_last":500,"rows_between":2000,"halvings":0,"cell_chars":16384,"cell_head_chars":4096},"cells_cut":0,"cells_raw":0,"read":"whole","date_system":"1900"}

{"sheet":"調査票","index":0,"n_rows":260,"n_cols":27,"rows_kept":260,"cut":false,"hidden":false,"merged":[[204,0,219,0],[217,1,219,1],[221,0,222,0],[121,1,121,12],[148,0,164,0],[149,1,149,13],[167,11,167,12],[169,11,169,12],[170,11,170,12],[171,11,171,12],[181,1,181,10],[184,1,184,10],[185,1,185,13],[191,1,191,10],[192,1,192,10],[195,1,195,10],[195,11,195,12],[164,11,164,12],[156,1,156,13],[157,2,157,10],[158,2,158,10],[159,2,159,10],[136,1,136,10],[182,1,182,13],[187,0,188,13],[183,1,183,2],[168,11,168,12],[169,1,169,9],[173,1,173,13],[174,1,174,2],[179,1,179,13],[180,1,180,2],[180,3,180,13],[177,3,177,13],[178,1,178,10],[176,1,176,13],[177,1,177,2],[178,11,178,12],[186,3,186,13],[181,11,181,12],[184,11,184,12],[175,1,175,10],[147,0,147,13],[139,11,139,12],[140,1,140,13],[141,1,141,2],[141,3,141,13],[145,11,145,12],[146,11,146,12],[148,11,148,12],[157,11,157,12],[151,11,151,12],[150,2,150,10],[151,2,151,10],[152,2,152,10],[153,2,153,10],[148,1,148,10],[99,0,100,13],[56,0,62,0],[56,11,56,12],[57,11,57,12],[58,11,58,12],[59,11,59,12],[60,11,60,12],[29,0,35,0],[29,11,29,12],[30,11,30,12],[31,11,31,12],[32,11,32,12],[38,0,44,0],[38,11,38,12],[39,11,39,12],[32,1,32,10],[40,11,40,12],[41,11,41,12],[42,11,42,12],[43,1,43,13],[44,1,44,2],[29,1,29,10],[30,1,30,10],[50,11,50,12],[27,0,28,13],[36,0,37,13],[45,0,46,13],[54,0,55,13],[63,0,64,13],[72,0,73,13],[81,0,82,13],[90,0,91,13],[26,11,26,12],[44,3,44,13],[33,11,33,12],[35,1,35,2],[35,3,35,13],[26,0,26,10],[33,1,33,10],[38,1,38,10],[39,1,39,10],[40,1,40,10],[41,1,41,10],[31,1,31,10],[47,0,53,0],[47,11,47,12],[48,11,48,12],[49,11,49,12],[51,11,51,12],[52,1,52,13],[53,1,53,2],[53,3,53,13],[42,1,42,10],[47,1,47,10],[48,1,48,10],[49,1,49,10],[50,1,50,10],[51,1,51,10],[2,1,2,2],[2,3,2,7],[3,1,3,2],[3,3,3,7],[4,1,4,2],[4,3,4,7],[10,11,10,12],[11,1,11,2],[11,3,11,7],[11,11,11,12],[8,1,8,2],[8,3,8,7],[9,1,9,2],[9,3,9,7],[10,1,10,2],[10,3,10,7],[5,1,5,2],[5,3,5,7],[6,1,6,2],[6,3,6,7],[7,1,7,2],[7,3,7,7],[65,0,71,0],[65,11,65,12],[66,11,66,12],[67,11,67,12],[68,11,68,12],[69,11,69,12],[70,1,70,13],[71,1,71,2],[71,3,71,13],[66,1,66,10],[67,1,67,10],[68,1,68,10],[69,1,69,10],[74,0,80,0],[74,11,74,12],[75,11,75,12],[76,11,76,12],[77,11,77,12],[78,11,78,12],[79,1,79,13],[80,1,80,2],[80,3,80,13],[74,1,74,10],[75,1,75,10],[77,1,77,10],[83,0,89,0],[83,11,83,12],[84,11,84,12],[85,11,85,12],[86,11,86,12],[87,11,87,12],[88,1,88,13],[89,1,89,2],[89,3,89,13],[83,1,83,10],[84,1,84,10],[85,1,85,10],[86,1,86,10],[87,1,87,10],[92,0,98,0],[92,11,92,12],[93,11,93,12],[94,11,94,12],[95,11,95,12],[96,11,96,12],[97,1,97,13],[98,1,98,2],[98,3,98,13],[94,1,94,10],[95,1,95,10],[96,1,96,10],[92,1,92,10],[93,1,93,10],[101,0,107,0],[101,11,101,12],[102,11,102,12],[103,11,103,12],[104,11,104,12],[105,11,105,12],[106,1,106,13],[107,1,107,2],[107,3,107,13],[101,1,101,10],[102,1,102,10],[103,1,103,10],[104,1,104,10],[105,1,105,10],[110,0,116,0],[110,11,110,12],[111,11,111,12],[112,11,112,12],[113,11,113,12],[115,1,115,13],[116,1,116,2],[116,3,116,13],[110,1,110,10],[111,1,111,10],[112,1,112,10],[113,1,113,10],[114,1,114,10],[165,0,165,13],[166,1,166,10],[168,1,168,9],[172,11,172,12],[175,11,175,12],[170,1,170,10],[171,1,171,10],[172,1,172,10],[150,11,150,12],[160,11,160,12],[161,11,161,12],[162,11,162,12],[163,11,163,12],[158,11,158,12],[159,11,159,12],[160,2,160,10],[161,2,161,10],[162,2,162,10],[163,2,163,10],[164,2,164,10],[190,0,190,13],[197,0,197,13],[203,0,203,13],[108,0,109,13],[122,1,122,13],[123,1,123,2],[123,3,123,13],[126,0,132,0],[126,11,126,12],[127,11,127,12],[128,11,128,12],[129,11,129,12],[130,11,130,12],[131,1,131,13],[132,1,132,2],[132,3,132,13],[128,1,128,10],[129,1,129,10],[130,1,130,10],[183,3,183,13],[186,1,186,2],[135,1,135,10],[137,1,137,10],[138,1,138,10],[189,0,189,10],[224,11,224,12],[225,11,225,12],[226,11,226,12],[221,11,221,12],[222,11,222,12],[220,0,220,13],[218,2,218,10],[219,2,219,10],[196,1,196,10],[198,1,198,10],[194,11,194,12],[196,11,196,12],[198,11,198,12],[193,11,193,12],[189,11,189,12],[210,11,210,12],[212,11,212,12],[213,11,213,12],[214,11,214,12],[217,11,217,12],[191,11,191,12],[192,11,192,12],[221,1,221,10],[244,4,244,10],[227,11,227,12],[228,11,228,12],[229,11,229,12],[235,4,235,10],[236,4,236,10],[237,4,237,10],[253,11,253,12],[254,11,254,12],[238,4,238,10],[239,4,239,10],[240,4,240,10],[242,4,242,10],[243,4,243,10],[255,11,255,12],[256,11,256,12],[257,11,257,12],[258,11,258,12],[245,4,245,10],[246,11,246,12],[248,11,248,12],[249,11,249,12],[250,11,250,12],[251,0,252,13],[277,11,277,12],[278,11,278,12],[279,11,279,12],[280,11,280,12],[281,11,281,12],[282,11,282,12],[271,11,271,12],[272,11,272,12],[273,11,273,12],[274,11,274,12],[275,11,275,12],[276,11,276,12],[265,11,265,12],[266,11,266,12],[267,11,267,12],[268,11,268,12],[269,11,269,12],[270,11,270,12],[259,11,259,12],[260,11,260,12],[261,11,261,12],[262,11,262,12],[263,11,263,12],[264,11,264,12],[124,0,125,13],[119,1,119,10],[119,11,119,12],[135,0,141,0],[135,11,135,12],[136,11,136,12],[137,11,137,12],[138,11,138,12],[146,0,146,10],[139,1,139,10],[126,1,126,10],[127,1,127,10],[119,0,123,0],[133,0,134,13],[120,1,120,12],[222,1,222,10],[199,1,199,10],[204,1,204,13],[205,2,205,10],[206,2,206,10],[210,2,210,10],[211,2,211,10],[212,2,212,10],[213,2,213,10],[217,2,217,10],[218,11,218,12],[219,11,219,12],[206,11,206,12],[199,11,199,12],[205,11,205,12],[211,11,211,12],[209,1,209,13],[216,1,216,13],[193,1,193,10],[194,1,194,10],[174,3,174,13],[152,11,152,12],[13,1,16,13],[18,1,20,13],[22,11,22,12],[24,11,24,12],[25,11,25,12],[56,1,56,10],[57,1,57,10],[61,1,61,13],[153,11,153,12],[154,11,154,12],[154,1,154,10],[155,1,155,10],[167,1,167,10],[58,1,58,10],[59,1,59,10],[60,1,60,10],[65,1,65,10],[62,1,62,2],[62,3,62,13],[117,0,118,13]]}
["サステナビリティ活動及び環境保全活動調査票（様式１）",null,null,null,null,null,null,null,null,null,null,"（株）明電舎　調達本部"]
[null,null,null,null,null,null,null,null,null,null,null,"2022-11-09","版：O",null,null,null,null,"入力ﾁｪｯｸ","必須項目","judge","未入力","再入力","確認",null,null,"入力セル行フラグ","入力セル列番号"]
[null,"会社名",null,null,null,null,null,null,null,null,null,"資料番号：資管-1286",null,null,null,null,null,{"$f":"IF(D3=\"\",1,0)","v":1},null,{"$f":"IF(S3=34,\"1\",\"\")","v":""},{"$f":"IF(ISERROR(R3-T3)=TRUE,\"\",R3-T3)","v":""},{"$f":"IF(S3=3,1,\"\")","v":""},{"$f":"IF(ISERROR(R3-V3)=TRUE,\"\",R3-V3)","v":""},null,null,1,4]
[null,"事業所名",null,null,null,null,null,null,null,null,null,null,null,null,null,null,null,1,null,{"$f":"IF(S4=34,\"1\",\"\")","v":""},{"$f":"IF(ISERROR(R4-T4)=TRUE,\"\",R4-T4)","v":""},{"$f":"IF(S4=3,1,\"\")","v":""},{"$f":"IF(ISERROR(R4-V4)=TRUE,\"\",R4-V4)","v":""},null,null,1,4]
[null,"事業所所在地",null,null,null,null,null,null,null,null,null,"未入力がないことを",null,null,null,null,null,1,null,"","","","",null,null,1,4]
[null,"代表電話番号",null,null,null,null,null,null,null,null,null,"確認してからﾎﾞﾀﾝを",null,null,null,null,null,1,null,"","","","",null,null,1,4]
[null,"ご回答者名",null,null,null,null,null,null,null,null,null,"押して下さい→",null,null,null,null,null,1,null,"","","","",null,null,1,4]
[null,"所属部署名",null,null,null,null,null,null,null,null,null,null,null,null,null,null,null,1,null,"","","","",null,null,1,4]
[null,"電話番号",null,null,null,null,null,null,null,null,null,null,null,"ここから始めて下さい",null,null,null,1,null,"","","","",null,null,1,4]
[null,"ＦＡＸ番号",null,null,null,null,null,null,null,null,null,null,null,"↓",null,null,null,1,null,"","","","",null,null,1,4]
[null,"Ｅメールアドレス",null,null,null,null,null,null,null,null,"質問事項","回答選択肢",null,"回答欄",null,null,null,1,null,"","","","",null,null,1,4]
[null,"回答日",null,null,null,null,null,null,null,null,"回答開始","1：はい、0：いいえ",null,0,null,null,null,1,null,"","","","",null,null,1,"4,14"]
[]
[null,"【取引先様への調査協力のお願い事項】　　　　　　　　　　　　　　　　　　　　　　　　　　　　　　　　　　　　　　　　　　　　　　　　　　　　　　　　　　　　　　　　　\n弊社では、循環型社会の形成と企業の継続的発展を目指して、環境に配慮した製品やサービスを、お客様に提供していきます。取引先様からご提供いただいた環境保全活動に関する情報は、この為に活用させていただきます。取引先様におかれましては、本主旨をご理解いただき、継続的な環境保全活動の取り組みと以下の調査についてご協力下さいますよう、よろしくお願いします"]
[]
[]
[]
[]
[null,"本調査は、当社が推進をお願いするサステナビリティ活動が、どの程度行われているかを把握する目的で行っています。本調査の結果を、回答していただいた取引先名の公表は行いません。また、個別の回答内容を断りなく外部に公表することはありません。"]
[]
[]
[]
["１．サステナビリティへの取組調査"]
[null,"貴社および、貴社と直接取引があるサプライヤー（海外を含む。以下、「直接取引先」という）でのサステナビリティへの取組状況を踏まえ、以下の設問のご回答欄に"]
[null,"該当する選択肢をご記入下さい。"]
[]
["質　問　事　項",null,null,null,null,null,null,null,null,null,null,"回答選択肢",null,"回答欄",null,null,"規制","入力ﾁｪｯｸ","必須項目","judge","未入力","再入力","確認"]
["１－１　従業員に対する強制労働、児童労働、虐待、体罰、セクシャルハラスメント、パワーハラスメント等の非人道的扱いや、法定限度を超えた労働時間の強要、団結権に対する妨害行為等を行わないこと"]
[null,null,null,null,null,null,null,null,null,null,null,null,null,null,null,null,"人権労働"]
["人権労働","（１）上記の項目に関して、法規制や社会的規範を認識していますか。",null,null,null,null,null,null,null,null,null,"1：はい、0：いいえ",null,null,null,{"$f":"N30*1","v":0},null,{"$f":"IF(N30=\"\",1,0)","v":1},null,{"$f":"IF(S30=34,\"1\",\"\")","v":""},{"$f":"IF(ISERROR(R30-T30)=TRUE,\"\",R30-T30)","v":""},{"$f":"IF(S30=3,1,\"\")","v":""},{"$f":"IF(ISERROR(R30-V30)=TRUE,\"\",R30-V30)","v":""},null,null,1,14]
[null,"（２）上記の項目に関して、責任部署（あるいは責任者）を明確に決めていますか。",null,null,null,null,null,null,null,null,null,"1：はい、0：いいえ",null,null,null,0,null,1,null,"","","","",null,null,1,14]
[null,"（３）上記の項目に関して、社内調査等の事実やデータによる現状認識をおこなっていますか。",null,null,null,null,null,null,null,null,null,"1：はい、0：いいえ",null,null,null,0,null,1,null,"","","","",null,null,1,14]
[null,"（４）上記の項目に関して、問題発生時の対応の仕組みはできていますか。",null,null,null,null,null,null,null,null,null,"1：はい、0：いいえ",null,null,null,0,null,1,null,"","","","",null,null,1,14]
[null,"（５）上記の項目に関して、徹底すべき人に対して教育を行っていますか。",null,null,null,null,null,null,null,null,null,"1：はい、0：いいえ",null,null,null,0,null,1,null,"","","","",null,null,1,14]
[null,"当該項目に関して、補足説明があれば記入して下さい（過去１年で計画的に取り組んだ事項、緊急に対応した事項、特徴ある事項や効果があった事項等） 　未入力不可（ない場合はなし）",null,null,null,null,null,null,null,null,null,null,null,null,null,0,null,1,null,{"$f":"IF(S35=34,\"1\",\"\")","v":""},{"$f":"IF(ISERROR(R35-T35)=TRUE,\"\",R35-T35)","v":""},{"$f":"IF(S35=3,1,\"\")","v":""},{"$f":"IF(ISERROR(R35-V35)=TRUE,\"\",R35-V35)","v":""}]
[null,"（ご記入下さい）",null,null,null,null,null,null,null,null,null,null,null,null,null,0,null,{"$f":"IF(D36=\"\",1,0)","v":1},null,"","","","",null,null,1,4]
["１－２　採用、昇進、報酬・研修受講などの機会や処遇における差別的行為や、法定最低賃金に満たない賃金支払い等を行わないこと",null,null,null,null,null,null,null,null,null,null,null,null,null,null,null,{"$f":"SUM(P30:P34)","v":0},null,null,"","","",{"$f":"IF(ISERROR(R37-V37)=TRUE,\"\",R37-V37)","v":""}]
[null,null,null,null,null,null,null,null,null,null,null,null,null,null,null,null,null,null,null,"","","",{"$f":"IF(ISERROR(R38-V38)=TRUE,\"\",R38-V38)","v":""}]
["人権労働","（１）上記の項目に関して、法規制や社会的規範を認識していますか。",null,null,null,null,null,null,null,null,null,"1：はい、0：いいえ",null,null,null,{"$f":"N39*1","v":0},null,{"$f":"IF(N39=\"\",1,0)","v":1},null,"","","","",null,null,1,14]
[null,"（２）上記の項目に関して、責任部署（あるいは責任者）を明確に決めていますか。",null,null,null,null,null,null,null,null,null,"1：はい、0：いいえ",null,null,null,0,null,{"$f":"IF(N40=\"\",1,0)","v":1},null,"","","","",null,null,1,14]
[null,"（３）上記の項目に関して、社内調査等の事実やデータによる現状認識をおこなっていますか。",null,null,null,null,null,null,null,null,null,"1：はい、0：いいえ",null,null,null,0,null,1,null,"","","","",null,null,1,14]
[null,"（４）上記の項目に関して、問題発生時の対応の仕組みはできていますか。",null,null,null,null,null,null,null,null,null,"1：はい、0：いいえ",null,null,null,0,null,1,null,"","","","",null,null,1,14]
[null,"（５）上記の項目に関して、徹底すべき人に対して教育を行っていますか。",null,null,null,null,null,null,null,null,null,"1：はい、0：いいえ",null,null,null,0,null,1,null,"","","","",null,null,1,14]
[null,"当該項目に関して、補足説明があれば記入して下さい（過去１年で計画的に取り組んだ事項、緊急に対応した事項、特徴ある事項や効果があった事項等） 　未入力不可（ない場合はなし）",null,null,null,null,null,null,null,null,null,null,null,null,null,0,null,{"$f":"IF(N44=\"\",1,0)","v":1},null,{"$f":"IF(S44=34,\"1\",\"\")","v":""},{"$f":"IF(ISERROR(R44-T44)=TRUE,\"\",R44-T44)","v":""},{"$f":"IF(S44=3,1,\"\")","v":""},{"$f":"IF(ISERROR(R44-V44)=TRUE,\"\",R44-V44)","v":""}]
[null,"（ご記入下さい）",null,null,null,null,null,null,null,null,null,null,null,null,null,0,null,{"$f":"IF(D45=\"\",1,0)","v":1},null,"","","","",null,null,1,4]
["１－３　機械装置類への適切な安全対策装置の設置およびその検査・整備、就業中に発生する事故や健康障害のリスク評価と安全対策、火災、大地震等への緊急時の対応策と職場内への周知徹底",null,null,null,null,null,null,null,null,null,null,null,null,null,null,null,{"$f":"SUM(P39:P45)","v":0},null,null,"","","",{"$f":"IF(ISERROR(R46-V46)=TRUE,\"\",R46-V46)","v":""}]
[null,null,null,null,null,null,null,null,null,null,null,null,null,null,null,null,"安全衛生",null,null,"","","",{"$f":"IF(ISERROR(R47-V47)=TRUE,\"\",R47-V47)","v":""}]
["安全","（１）上記の項目に関して、法規制や社会的規範を認識していますか。",null,null,null,null,null,null,null,null,null,"1：はい、0：いいえ",null,null,null,{"$f":"N48*1","v":0},null,1,null,"","","","",null,null,1,14]
[null,"（２）上記の項目に関して、責任部署（あるいは責任者）を明確に決めていますか。",null,null,null,null,null,null,null,null,null,"1：はい、0：いいえ",null,null,null,0,null,1,null,"","","","",null,null,1,14]
[null,"（３）上記の項目に関して、社内調査等の事実やデータによる現状認識をおこなっていますか。",null,null,null,null,null,null,null,null,null,"1：はい、0：いいえ",null,null,null,0,null,1,null,"","","","",null,null,1,14]
[null,"（４）上記の項目に関して、問題発生時の対応の仕組みはできていますか。",null,null,null,null,null,null,null,null,null,"1：はい、0：いいえ",null,null,null,0,null,1,null,"","","","",null,null,1,14]
[null,"（５）上記の項目に関して、徹底すべき人に対して教育を行っていますか。",null,null,null,null,null,null,null,null,null,"1：はい、0：いいえ",null,null,null,0,null,1,null,"","","","",null,null,1,14]
[null,"当該項目に関して、補足説明があれば記入して下さい（過去１年で計画的に取り組んだ事項、緊急に対応した事項、特徴ある事項や効果があった事項等） 　未入力不可（ない場合はなし）",null,null,null,null,null,null,null,null,null,null,null,null,null,0,null,{"$f":"IF(N53=\"\",1,0)","v":1},null,{"$f":"IF(S53=34,\"1\",\"\")","v":""},{"$f":"IF(ISERROR(R53-T53)=TRUE,\"\",R53-T53)","v":""},{"$f":"IF(S53=3,1,\"\")","v":""},{"$f":"IF(ISERROR(R53-V53)=TRUE,\"\",R53-V53)","v":""}]
[null,"（ご記入下さい）",null,null,null,null,null,null,null,null,null,null,null,null,null,0,null,{"$f":"IF(D54=\"\",1,0)","v":1},null,"","","","",null,null,1,4]
["１－４　職場での、人体に有害な生物、化学物質、騒音、悪臭など衛生リスクの評価および安全対策、従業員に対する健康診断、従業員の生活のために提供される施設の確保と健康管理",null,null,null,null,null,null,null,null,null,null,null,null,null,null,null,{"$f":"SUM(P48:P54)","v":0},null,null,"","","",{"$f":"IF(ISERROR(R55-V55)=TRUE,\"\",R55-V55)","v":""}]
[null,null,null,null,null,null,null,null,null,null,null,null,null,null,null,null,null,null,null,"","","",{"$f":"IF(ISERROR(R56-V56)=TRUE,\"\",R56-V56)","v":""}]
["衛生","（１）上記の項目に関して、法規制や社会的規範を認識していますか。",null,null,null,null,null,null,null,null,null,"1：はい、0：いいえ",null,null,null,{"$f":"N57*1","v":0},null,1,null,"","","","",null,null,1,14]
[null,"（２）上記の項目に関して、責任部署（あるいは責任者）を明確に決めていますか。",null,null,null,null,null,null,null,null,null,"1：はい、0：いいえ",null,null,null,0,null,1,null,"","","","",null,null,1,14]
[null,"（３）上記の項目に関して、社内調査等の事実やデータによる現状認識をおこなっていますか。",null,null,null,null,null,null,null,null,null,"1：はい、0：いいえ",null,null,null,0,null,1,null,"","","","",null,null,1,14]
[null,"（４）上記の項目に関して、問題発生時の対応の仕組みはできていますか。",null,null,null,null,null,null,null,null,null,"1：はい、0：いいえ",null,null,null,0,null,1,null,"","",{"$f":"IF(S60=3,1,\"\")","v":""},"",null,null,1,14]
[null,"（５）上記の項目に関して、徹底すべき人に対して教育を行っていますか。",null,null,null,null,null,null,null,null,null,"1：はい、0：いいえ",null,null,null,0,null,1,null,"","",{"$f":"IF(S61=3,1,\"\")","v":""},"",null,null,1,14]
[null,"当該項目に関して、補足説明があれば記入して下さい（過去１年で計画的に取り組んだ事項、緊急に対応した事項、特徴ある事項や効果があった事項等） 　未入力不可（ない場合はなし）",null,null,null,null,null,null,null,null,null,null,null,null,null,0,null,{"$f":"IF(N62=\"\",1,0)","v":1},null,{"$f":"IF(S62=34,\"1\",\"\")","v":""},{"$f":"IF(ISERROR(R62-T62)=TRUE,\"\",R62-T62)","v":""},{"$f":"IF(S62=3,1,\"\")","v":""},{"$f":"IF(ISERROR(R62-V62)=TRUE,\"\",R62-V62)","v":""}]
[null,"（ご記入下さい）",null,null,null,null,null,null,null,null,null,null,null,null,null,0,null,{"$f":"IF(D63=\"\",1,0)","v":1},null,"","",{"$f":"IF(S63=3,1,\"\")","v":""},{"$f":"IF(ISERROR(R63-V63)=TRUE,\"\",R63-V63)","v":""},null,null,1,4]
["１－５　公務員等への業務上の見返りを求めた金銭の提供、接待、贈り物、その他利益や便宜の供与、違法な政治献金を行わないこと",null,null,null,null,null,null,null,null,null,null,null,null,null,null,null,{"$f":"SUM(P57:P63)","v":0},null,null,"","","",""]
[null,null,null,null,null,null,null,null,null,null,null,null,null,null,null,null,"公正取引倫理",null,null,"","","",""]
["公正取引倫理","（１）上記の項目に関して、法規制や社会的規範を認識していますか。",null,null,null,null,null,null,null,null,null,"1：はい、0：いいえ",null,null,null,{"$f":"N66*1","v":0},null,1,null,"","","","",null,null,1,14]
[null,"（２）上記の項目に関して、責任部署（あるいは責任者）を明確に決めていますか。",null,null,null,null,null,null,null,null,null,"1：はい、0：いいえ",null,null,null,0,null,1,null,"","","","",null,null,1,14]
[null,"（３）上記の項目に関して、社内調査等の事実やデータによる現状認識をおこなっていますか。",null,null,null,null,null,null,null,null,null,"1：はい、0：いいえ",null,null,null,0,null,1,null,"","","","",null,null,1,14]
[null,"（４）上記の項目に関して、問題発生時の対応の仕組みはできていますか。",null,null,null,null,null,null,null,null,null,"1：はい、0：いいえ",null,null,null,0,null,1,null,"","","","",null,null,1,14]
[null,"（５）上記の項目に関して、徹底すべき人に対して教育を行っていますか。",null,null,null,null,null,null,null,null,null,"1：はい、0：いいえ",null,null,null,0,null,1,null,"","","","",null,null,1,14]
[null,"当該項目に関して、補足説明があれば記入して下さい（過去１年で計画的に取り組んだ事項、緊急に対応した事項、特徴ある事項や効果があった事項等） 　未入力不可（ない場合はなし）",null,null,null,null,null,null,null,null,null,null,null,null,null,0,null,{"$f":"IF(N71=\"\",1,0)","v":1},null,{"$f":"IF(S71=34,\"1\",\"\")","v":""},{"$f":"IF(ISERROR(R71-T71)=TRUE,\"\",R71-T71)","v":""},{"$f":"IF(S71=3,1,\"\")","v":""},""]
[null,"（ご記入下さい）",null,null,null,null,null,null,null,null,null,null,null,null,null,0,null,{"$f":"IF(D72=\"\",1,0)","v":1},null,"","","","",null,null,1,4]
["１－６　優越的地位の濫用、下請法違反、反社会的勢力への利益供与、インサイダー取引、カルテルや入札談合にあたる行為を行わないこと",null,null,null,null,null,null,null,null,null,null,null,null,null,null,null,{"$f":"SUM(P66:P72)","v":0},null,null,"","","",""]
[null,null,null,null,null,null,null,null,null,null,null,null,null,null,null,null,null,null,null,"","","",""]
["公正取引倫理","（１）上記の項目に関して、法規制や社会的規範を認識していますか。",null,null,null,null,null,null,null,null,null,"1：はい、0：いいえ",null,null,null,{"$f":"N75*1","v":0},null,1,null,"","","","",null,null,1,14]
[null,"（２）上記の項目に関して、責任部署（あるいは責任者）を明確に決めていますか。",null,null,null,null,null,null,null,null,null,"1：はい、0：いいえ",null,null,null,{"$f":"N76*1","v":0},null,1,null,"","","","",null,null,1,14]
[null,"（３）上記の項目に関して、社内調査等の事実やデータによる現状認識をおこなっていますか。",null,null,null,null,null,null,null,null,null,"1：はい、0：いいえ",null,null,null,0,null,1,null,"","","","",null,null,1,14]
[null,"（４）上記の項目に関して、問題発生時の対応の仕組みはできていますか。",null,null,null,null,null,null,null,null,null,"1：はい、0：いいえ",null,null,null,0,null,1,null,"","","","",null,null,1,14]
[null,"（５）上記の項目に関して、徹底すべき人に対して教育を行っていますか。",null,null,null,null,null,null,null,null,null,"1：はい、0：いいえ",null,null,null,0,null,1,null,"","","","",null,null,1,14]
[null,"当該項目に関して、補足説明があれば記入して下さい（過去１年で計画的に取り組んだ事項、緊急に対応した事項、特徴ある事項や効果があった事項等） 　未入力不可（ない場合はなし）",null,null,null,null,null,null,null,null,null,null,null,null,null,{"$f":"N80*1","v":0},null,{"$f":"IF(N80=\"\",1,0)","v":1},null,{"$f":"IF(S80=34,\"1\",\"\")","v":""},{"$f":"IF(ISERROR(R80-T80)=TRUE,\"\",R80-T80)","v":""},{"$f":"IF(S80=3,1,\"\")","v":""},""]
[null,"（ご記入下さい）",null,null,null,null,null,null,null,null,null,null,null,null,null,0,null,{"$f":"IF(D81=\"\",1,0)","v":1},null,"","","","",null,null,1,4]
["１－７　知的財産の無断使用、著作物の違法複製、第三者の営業秘密を違法な手段で入手する行為を行わないこと",null,null,null,null,null,null,null,null,null,null,null,null,null,null,null,{"$f":"SUM(P75:P81)","v":0},null,null,"","","",""]
[null,null,null,null,null,null,null,null,null,null,null,null,null,null,null,null,null,null,null,"","","",""]
["公正取引倫理","（１）上記の項目に関して、法規制や社会的規範を認識していますか。",null,null,null,null,null,null,null,null,null,"1：はい、0：いいえ",null,null,null,0,null,1,null,"","","","",null,null,1,14]
[null,"（２）上記の項目に関して、責任部署（あるいは責任者）を明確に決めていますか。",null,null,null,null,null,null,null,null,null,"1：はい、0：いいえ",null,null,null,0,null,1,null,"","","","",null,null,1,14]
[null,"（３）上記の項目に関して、社内調査等の事実やデータによる現状認識をおこなっていますか。",null,null,null,null,null,null,null,null,null,"1：はい、0：いいえ",null,null,null,0,null,1,null,"","","","",null,null,1,14]
[null,"（４）上記の項目に関して、問題発生時の対応の仕組みはできていますか。",null,null,null,null,null,null,null,null,null,"1：はい、0：いいえ",null,null,null,0,null,1,null,"","","","",null,null,1,14]
[null,"（５）上記の項目に関して、徹底すべき人に対して教育を行っていますか。",null,null,null,null,null,null,null,null,null,"1：はい、0：いいえ",null,null,null,0,null,1,null,"","","","",null,null,1,14]
[null,"当該項目に関して、補足説明があれば記入して下さい（過去１年で計画的に取り組んだ事項、緊急に対応した事項、特徴ある事項や効果があった事項等） 　未入力不可（ない場合はなし）",null,null,null,null,null,null,null,null,null,null,null,null,null,{"$f":"N89*1","v":0},null,{"$f":"IF(N89=\"\",1,0)","v":1},null,{"$f":"IF(S89=34,\"1\",\"\")","v":""},{"$f":"IF(ISERROR(R89-T89)=TRUE,\"\",R89-T89)","v":""},{"$f":"IF(S89=3,1,\"\")","v":""},""]
[null,"（ご記入下さい）",null,null,null,null,null,null,null,null,null,null,null,null,null,0,null,{"$f":"IF(D90=\"\",1,0)","v":1},null,"","","","",null,null,1,4]
["１－８　法令等で規制対象の技術や物品を輸出に関して、監督官庁等への届出や取引審査などの外為法その他の定める手続きを適切に行うこと",null,null,null,null,null,null,null,null,null,null,null,null,null,null,null,{"$f":"SUM(P84:P90)","v":0},null,null,"","","",""]
[null,null,null,null,null,null,null,null,null,null,null,null,null,null,null,null,null,null,null,"","","",""]
["公正取引倫理","（１）上記の項目に関して、法規制や社会的規範を認識していますか。",null,null,null,null,null,null,null,null,null,"1：はい、0：いいえ",null,null,null,0,null,1,null,"","","","",null,null,1,14]
[null,"（２）上記の項目に関して、責任部署（あるいは責任者）を明確に決めていますか。",null,null,null,null,null,null,null,null,null,"1：はい、0：いいえ",null,null,null,0,null,1,null,{"$f":"IF(S94=34,\"1\",\"\")","v":""},{"$f":"IF(ISERROR(R94-T94)=TRUE,\"\",R94-T94)","v":""},"","",null,null,1,14]
[null,"（３）上記の項目に関して、社内調査等の事実やデータによる現状認識をおこなっていますか。",null,null,null,null,null,null,null,null,null,"1：はい、0：いいえ",null,null,null,0,null,1,null,"","","","",null,null,1,14]
[null,"（４）上記の項目に関して、問題発生時の対応の仕組みはできていますか。",null,null,null,null,null,null,null,null,null,"1：はい、0：いいえ",null,null,null,0,null,1,null,"","","","",null,null,1,14]
[null,"（５）上記の項目に関して、徹底すべき人に対して教育を行っていますか。",null,null,null,null,null,null,null,null,null,"1：はい、0：いいえ",null,null,null,0,null,1,null,"","","","",null,null,1,14]
[null,"当該項目に関して、補足説明があれば記入して下さい（過去１年で計画的に取り組んだ事項、緊急に対応した事項、特徴ある事項や効果があった事項等） 　未入力不可（ない場合はなし）",null,null,null,null,null,null,null,null,null,null,null,null,null,{"$f":"N98*1","v":0},null,1,null,"","",{"$f":"IF(S98=3,1,\"\")","v":""},{"$f":"IF(ISERROR(R98-V98)=TRUE,\"\",R98-V98)","v":""}]
[null,"（ご記入下さい）",null,null,null,null,null,null,null,null,null,null,null,null,null,0,null,{"$f":"IF(D99=\"\",1,0)","v":1},null,"","","","",null,null,1,4]
["１－９　企業での活動に関して、少なくても法令で開示が義務付けられている情報についてステークスホルダーに対して開示していること",null,null,null,null,null,null,null,null,null,null,null,null,null,null,null,{"$f":"SUM(P93:P99)","v":0},null,null,"","","",""]
[null,null,null,null,null,null,null,null,null,null,null,null,null,null,null,null,null,null,null,"","","",""]
["公正取引倫理","（１）上記の項目に関して、法規制や社会的規範を認識していますか。",null,null,null,null,null,null,null,null,null,"1：はい、0：いいえ",null,null,null,{"$f":"N102*1","v":0},null,1,null,"","","","",null,null,1,14]
[null,"（２）上記の項目に関して、責任部署（あるいは責任者）を明確に決めていますか。",null,null,null,null,null,null,null,null,null,"1：はい、0：いいえ",null,null,null,0,null,1,null,"","","","",null,null,1,14]
[null,"（３）上記の項目に関して、社内調査等の事実やデータによる現状認識をおこなっていますか。",null,null,null,null,null,null,null,null,null,"1：はい、0：いいえ",null,null,null,0,null,1,null,"","","","",null,null,1,14]
[null,"（４）上記の項目に関して、問題発生時の対応の仕組みはできていますか。",null,null,null,null,null,null,null,null,null,"1：はい、0：いいえ",null,null,null,0,null,1,null,"","","","",null,null,1,14]
[null,"（５）上記の項目に関して、徹底すべき人に対して教育を行っていますか。",null,null,null,null,null,null,null,null,null,"1：はい、0：いいえ",null,null,null,0,null,1,null,"","","","",null,null,1,14]
[null,"当該項目に関して、補足説明があれば記入して下さい（過去１年で計画的に取り組んだ事項、緊急に対応した事項、特徴ある事項や効果があった事項等） 　未入力不可（ない場合はなし）",null,null,null,null,null,null,null,null,null,null,null,null,null,0,null,1,null,"","",{"$f":"IF(S107=3,1,\"\")","v":""},{"$f":"IF(ISERROR(R107-V107)=TRUE,\"\",R107-V107)","v":""}]
[null,"（ご記入下さい）",null,null,null,null,null,null,null,null,null,null,null,null,null,0,null,{"$f":"IF(D108=\"\",1,0)","v":1},null,"","","","",null,null,1,4]
["１－１０　製品安全性を確保する評価・試験を行い、トレーサビリティがあること。また、ISO9000シリーズ等の品質マネジメントシシテムを構築し、継続的に運用していること",null,null,null,null,null,null,null,null,null,null,null,null,null,null,null,{"$f":"SUM(P102:P108)","v":0},null,null,"","","",""]
[null,null,null,null,null,null,null,null,null,null,null,null,null,null,null,null,"品質安全",null,null,"","","","",null,{"$f":"IF(ISERROR(Q110-S110)=TRUE,\"\",Q110-S110)","v":""}]
["品質安全","（１）上記の項目に関して、法規制や社会的規範を認識していますか。",null,null,null,null,null,null,null,null,null,"1：はい、0：いいえ",null,null,null,{"$f":"N111*1","v":0},null,1,null,"","","","",null,null,1,14]
[null,"（２）上記の項目に関して、責任部署（あるいは責任者）を明確に決めていますか。",null,null,null,null,null,null,null,null,null,"1：はい、0：いいえ",null,null,null,0,null,1,null,"","","","",null,null,1,14]
[null,"（３）上記の項目に関して、社内調査等の事実やデータによる現状認識をおこなっていますか。",null,null,null,null,null,null,null,null,null,"1：はい、0：いいえ",null,null,null,0,null,1,null,"","","","",null,null,1,14]
[null,"（４）上記の項目に関して、問題発生時の対応の仕組みはできていますか。",null,null,null,null,null,null,null,null,null,"1：はい、0：いいえ",null,null,null,0,null,1,null,"","","","",null,null,1,14]
[null,"（５）上記の項目に関して、徹底すべき人に対して教育を行っていますか。",null,null,null,null,null,null,null,null,null,"1：はい、0：いいえ",null,null,null,0,null,{"$f":"IF(N115=\"\",1,0)","v":1},null,"","","","",null,null,1,14]
[null,"当該項目に関して、補足説明があれば記入して下さい（過去１年で計画的に取り組んだ事項、緊急に対応した事項、特徴ある事項や効果があった事項等） 　未入力不可（ない場合はなし）",null,null,null,null,null,null,null,null,null,null,null,null,null,0,null,{"$f":"IF(N116=\"\",1,0)","v":1},null,"","",{"$f":"IF(S116=3,1,\"\")","v":""},{"$f":"IF(ISERROR(R116-V116)=TRUE,\"\",R116-V116)","v":""}]
[null,"（ご記入下さい）",null,null,null,null,null,null,null,null,null,null,null,null,null,0,null,{"$f":"IF(D117=\"\",1,0)","v":1},null,"","","","",null,null,1,4]
["１－１１　情報セキュリティ対策の状況に関して次の設問にお答えください。",null,null,null,null,null,null,null,null,null,null,null,null,null,null,null,{"$f":"SUM(P111:P117)","v":0},null,null,"","","",""]
[null,null,null,null,null,null,null,null,null,null,null,null,null,null,null,null,"情報ｾｷｭﾘﾃｨ",null,null,"","","","",null,{"$f":"IF(ISERROR(Q119-S119)=TRUE,\"\",Q119-S119)","v":""}]
["情報\nｾｷｭﾘﾃｨ","（１）貴社(貴事業所)では、情報セキュリティ関連の第三者認証を取得していますか。　例.ISO27001/ISMS",null,null,null,null,null,null,null,null,null,"1：はい、0：いいえ",null,null,null,{"$f":"N120*5","v":0},null,{"$f":"IF(N120=\"\",1,0)","v":1},null,{"$f":"IF(S120=34,\"1\",\"\")","v":""},{"$f":"IF(ISERROR(R120-T120)=TRUE,\"\",R120-T120)","v":""},{"$f":"IF(S120=3,1,\"\")","v":""},{"$f":"IF(ISERROR(R120-V120)=TRUE,\"\",R120-V120)","v":""},null,null,1,14]
[null,"（２）第三者認証を取得済みの場合、種類を記載して下さい。※リストにない場合は入力して下さい。",null,null,null,null,null,null,null,null,null,null,null,null,null,null,null,{"$f":"IF(AND(N120=1,N121=\"\"),1,0)","v":0},null,{"$f":"IF(S121=34,\"1\",\"\")","v":""},{"$f":"IF(ISERROR(R121-T121)=TRUE,\"\",R121-T121)","v":""},{"$f":"IF(S121=3,1,\"\")","v":""},{"$f":"IF(ISERROR(R121-V121)=TRUE,\"\",R121-V121)","v":""},null,null,1,14]
[null,"（３）情報セキュリティ対策の貴社取組み状況を教えてください⇒別シート「情報セキュリティ自社診断票」を実施し採点結果を記入してください。",null,null,null,null,null,null,null,null,null,null,null,null,null,{"$f":"IF(ISNUMBER(N122)=FALSE,0,IF(AND(N120=0,AND(N122>=0,N122<20)),1,IF(AND(N120=0,AND(N122>=20,N122<40)),2,IF(AND(N120=0,AND(N122>=40,N122<60)),3,IF(AND(N120=0,AND(N122>=60,N122<80)),4,IF(AND(N120=0,N122>=80),5,0))))))","v":0},null,1,null,"","","","",null,null,1,14]
[null,"当該項目に関して、補足説明があれば記入して下さい（過去１年で計画的に取り組んだ事項、緊急に対応した事項、特徴ある事項や効果があった事項等） 　未入力不可（ない場合はなし）",null,null,null,null,null,null,null,null,null,null,null,null,null,{"$f":"N123*1","v":0},null,{"$f":"IF(N123=\"\",1,0)","v":1},null,"","",{"$f":"IF(S123=3,1,\"\")","v":""},{"$f":"IF(ISERROR(R123-V123)=TRUE,\"\",R123-V123)","v":""}]
[null,"（ご記入下さい）",null,null,null,null,null,null,null,null,null,null,null,null,null,{"$f":"N124*1","v":0},null,{"$f":"IF(D124=\"\",1,0)","v":1},null,"","",{"$f":"IF(S124=3,1,\"\")","v":""},{"$f":"IF(ISERROR(R124-V124)=TRUE,\"\",R124-V124)","v":""},null,null,1,4]
["１－１２　災害時における地域との連携、従業員ボランティア、ＮＰＯ/ＮＧＯなどの活動支援、寄付活動、各種情報発信などの社会貢献を行うこと",null,null,null,null,null,null,null,null,null,null,null,null,null,null,null,{"$f":"SUM(P118:P124)","v":0}]
[null,null,null,null,null,null,null,null,null,null,null,null,null,null,null,null,"社会貢献",null,null,"","","","",null,{"$f":"IF(ISERROR(Q126-S126)=TRUE,\"\",Q126-S126)","v":""}]
["社会貢献","（１）上記の項目に関して、自社に対する社会からの期待を認識していますか。",null,null,null,null,null,null,null,null,null,"1：はい、0：いいえ",null,null,null,{"$f":"N127*1","v":0},null,{"$f":"IF(N127=\"\",1,0)","v":1},null,"","","","",null,null,1,14]
[null,"（２）上記の項目に関して、責任部署（あるいは責任者）を明確に決めていますか。",null,null,null,null,null,null,null,null,null,"1：はい、0：いいえ",null,null,null,0,null,1,null,"","","","",null,null,1,14]
[null,"（３）上記の項目に関して、社内調査等の事実やデータによる現状認識をおこなっていますか。",null,null,null,null,null,null,null,null,null,"1：はい、0：いいえ",null,null,null,0,null,1,null,"","","","",null,null,1,14]
[null,"（４）上記の項目に関して、地域や社会からの要請への対応の仕組みはできていますか。",null,null,null,null,null,null,null,null,null,"1：はい、0：いいえ",null,null,null,0,null,1,null,"","","","",null,null,1,14]
[null,"（５）上記の項目に関して、徹底すべき人に対して教育を行っていますか。",null,null,null,null,null,null,null,null,null,"1：はい、0：いいえ",null,null,null,0,null,1,null,"","","","",null,null,1,14]
[null,"当該項目に関して、補足説明があれば記入して下さい（過去１年で計画的に取り組んだ事項、緊急に対応した事項、特徴ある事項や効果があった事項等） 　未入力不可（ない場合はなし）",null,null,null,null,null,null,null,null,null,null,null,null,null,0,null,1,null,"","",{"$f":"IF(S132=3,1,\"\")","v":""},""]
[null,"（ご記入下さい）",null,null,null,null,null,null,null,null,null,null,null,null,null,0,null,{"$f":"IF(D133=\"\",1,0)","v":1},null,"","","","",null,null,1,4]
["１－１３　緊急事態（自然災害、新型感染症の発生等）時の事業継続計画（ＢＣＰ）",null,null,null,null,null,null,null,null,null,null,null,null,null,null,null,{"$f":"SUM(P127:P133)","v":0},null,null,"","","",""]
[null,null,null,null,null,null,null,null,null,null,null,null,null,null,null,null,null,null,null,"","","",""]
["事業継続計画","（１）上記の項目に関して、自社に対する社会からの期待を認識していますか。",null,null,null,null,null,null,null,null,null,"1：はい、0：いいえ",null,null,null,{"$f":"N136*1","v":0},null,{"$f":"IF(N136=\"\",1,0)","v":1},null,"","","","",null,null,1,14]
[null,"（２）上記の項目に関して、責任部署（あるいは責任者）を明確に決めていますか。",null,null,null,null,null,null,null,null,null,"1：はい、0：いいえ",null,null,null,0,null,1,null,"","","","",null,null,1,14]
[null,"（３）上記の項目に関して、社内調査等の事実やデータによる現状認識をおこなっていますか。",null,null,null,null,null,null,null,null,null,"1：はい、0：いいえ",null,null,null,0,null,1,null,"","","","",null,null,1,14]
[null,"（４）上記の項目に関して、地域や社会からの要請への対応の仕組みはできていますか。",null,null,null,null,null,null,null,null,null,"1：はい、0：いいえ",null,null,null,0,null,1,null,"","","","",null,null,1,14]
[null,"（５）上記の項目に関して、徹底すべき人に対して教育を行っていますか。",null,null,null,null,null,null,null,null,null,"1：はい、0：いいえ",null,null,null,0,null,1,null,"","","","",null,null,1,14]
[null,"当該項目に関して、補足説明があれば記入して下さい（過去１年で計画的に取り組んだ事項、緊急に対応した事項、特徴ある事項や効果があった事項等） 　未入力不可（ない場合はなし）",null,null,null,null,null,null,null,null,null,null,null,null,null,0,null,1,null,"","",{"$f":"IF(S141=3,1,\"\")","v":""},""]
[null,"（ご記入下さい）",null,null,null,null,null,null,null,null,null,null,null,null,null,0,null,{"$f":"IF(D142=\"\",1,0)","v":1},null,{"$f":"IF(S142=34,\"1\",\"\")","v":""},{"$f":"IF(ISERROR(R142-T142)=TRUE,\"\",R142-T142)","v":""},{"$f":"IF(S142=3,1,\"\")","v":""},{"$f":"IF(ISERROR(R142-V142)=TRUE,\"\",R142-V142)","v":""},null,null,1,4]
[null,null,null,null,null,null,null,null,null,null,null,null,null,null,null,{"$f":"SUM(P28:P140)","v":0},{"$f":"SUM(P127:P133)","v":0},null,null,{"$f":"IF(S143=34,\"1\",\"\")","v":""},{"$f":"IF(ISERROR(R143-T143)=TRUE,\"\",R143-T143)","v":""},null,{"$f":"IF(S143=3,1,\"\")","v":""},{"$f":"IF(ISERROR(R143-W143)=TRUE,\"\",R143-W143)","v":""},{"$f":"IF(S143=34,\"1\",\"\")","v":""}]
[null,null,null,null,null,null,null,null,null,null,null,null,null,null,null,null,null,null,null,{"$f":"IF(S144=34,\"1\",\"\")","v":""},{"$f":"IF(ISERROR(R144-T144)=TRUE,\"\",R144-T144)","v":""},null,{"$f":"IF(S144=3,1,\"\")","v":""},{"$f":"IF(ISERROR(R144-W144)=TRUE,\"\",R144-W144)","v":""},{"$f":"IF(S144=34,\"1\",\"\")","v":""}]
["２．環境保全活動に関する調査",null,null,null,null,null,null,null,null,null,null,null,null,null,null,null,null,null,null,{"$f":"IF(S145=34,\"1\",\"\")","v":""},{"$f":"IF(ISERROR(R145-T145)=TRUE,\"\",R145-T145)","v":""},null,{"$f":"IF(S145=3,1,\"\")","v":""},{"$f":"IF(ISERROR(R145-W145)=TRUE,\"\",R145-W145)","v":""},{"$f":"IF(S145=34,\"1\",\"\")","v":""}]
[null,null,null,null,null,null,null,null,null,null,null,null,null,null,null,null,"環境保全活動",null,null,{"$f":"IF(S146=34,\"1\",\"\")","v":""},{"$f":"IF(ISERROR(R146-T146)=TRUE,\"\",R146-T146)","v":""}]
["質　問　事　項",null,null,null,null,null,null,null,null,null,null,"回答選択肢",null,"回答欄",null,null,null,{"$f":"IF(Q147=34,\"1\",\"\")","v":""},null,"",""]
["２－１　環境マネジメントシステムの取り組みについて"]
[null,"（１）貴社(貴事業所)では、環境ﾏﾈｼﾞﾒﾝﾄｼｽﾃﾑの第三者認証を取得していますか。",null,null,null,null,null,null,null,null,null,"1：はい、0：いいえ",null,null,null,{"$f":"N149*12","v":0},null,{"$f":"IF(N149=\"\",1,0)","v":1},null,{"$f":"IF(S149=34,\"1\",\"\")","v":""},{"$f":"IF(ISERROR(R149-T149)=TRUE,\"\",R149-T149)","v":""},{"$f":"IF(S149=3,1,\"\")","v":""},{"$f":"IF(ISERROR(R149-V149)=TRUE,\"\",R149-V149)","v":""},null,null,1,14]
[null,"（２）第三者認証を取得済みの場合、下記情報をお答え下さい。",null,null,null,null,null,null,null,null,null,null,null,null,null,{"$f":"N150*1","v":0},null,{"$f":"IF(N150=\"\",1,0)","v":1},null,{"$f":"IF(S150=34,\"1\",\"\")","v":""},{"$f":"IF(ISERROR(R150-T150)=TRUE,\"\",R150-T150)","v":""},{"$f":"IF(S150=3,1,\"\")","v":""},{"$f":"IF(ISERROR(R150-V150)=TRUE,\"\",R150-V150)","v":""}]
[null,null,"①　第三者認証内容の種類を記載して下さい。",null,null,null,null,null,null,null,null,"ﾌﾟﾙﾀﾞｳﾝで選択",null,null,null,null,null,{"$f":"IF(AND(N149=1,N151=\"\"),1,0)","v":0},null,{"$f":"IF(S151=34,\"1\",\"\")","v":""},"",{"$f":"IF(S151=3,1,\"\")","v":""},{"$f":"IF(ISERROR(R151-V151)=TRUE,\"\",R151-V151)","v":""},null,null,1,14]
[null,null,"②　取得年月(更新審査を受信した場合は最新の更新年月）",null,null,null,null,null,null,null,null,"更新・取得年月を記入　例）20XX/04/01　",null,null,null,null,null,{"$f":"IF(AND(N149=1,N152=\"\"),1,0)","v":0},null,"","","","",null,null,1,14]
[null,null,"③　認証番号",null,null,null,null,null,null,null,null,"認証番号を記入(半角）",null,null,null,null,null,{"$f":"IF(AND(N149=1,N153=\"\"),1,0)","v":0},null,"","","","",null,null,1,14]
[null,null,"④　審査登録機関(更新審査を受審した場合、最新の更新審査機関）",null,null,null,null,null,null,null,null,"ﾌﾟﾙﾀﾞｳﾝで選択",null,null,null,null,null,{"$f":"IF(AND(N149=1,N154=\"\"),1,0)","v":0},null,"","",{"$f":"IF(S154=3,1,\"\")","v":""},{"$f":"IF(ISERROR(R154-V154)=TRUE,\"\",R154-V154)","v":""},null,null,1,14]
[null,"（３）貴社(貴事業所)では第三者認証を取得する計画がありますか。",null,null,null,null,null,null,null,null,null,"1：はい、0：いいえ",null,null,null,{"$f":"N155*4","v":0},null,{"$f":"IF(AND(N149=0,N155=\"\"),1,0)","v":1},null,"","","","",null,null,1,14]
[null,"（４）計画がある場合、取得予定年月を記載ください。",null,null,null,null,null,null,null,null,null,"取得予定年月を記入　例）20XX/04/01　",null,null,null,null,null,{"$f":"IF(AND(N155=1,N156=\"\"),1,0)","v":0},null,"","","","",null,null,1,14]
[null,"（５）貴社(貴事業所)環境管理への取り組みについてお答え下さい。"]
[null,null,"①　環境の取り組みについて企業理念、企業方針がありますか。",null,null,null,null,null,null,null,null,"1：はい、0：いいえ",null,null,null,{"$f":"N158*1","v":0},null,{"$f":"IF(AND(N149=0,N158=\"\"),1,0)","v":1},null,"","",{"$f":"IF(S158=3,1,\"\")","v":""},{"$f":"IF(ISERROR(R158-V158)=TRUE,\"\",R158-V158)","v":""},null,null,1,14]
[null,null,"②　環境管理の組織・体制が整備されていますか。",null,null,null,null,null,null,null,null,"1：はい、0：いいえ",null,null,null,0,null,{"$f":"IF(AND(N149=0,N159=\"\"),1,0)","v":1},null,"","",{"$f":"IF(S159=3,1,\"\")","v":""},{"$f":"IF(ISERROR(R159-V159)=TRUE,\"\",R159-V159)","v":""},null,null,1,14]
[null,null,"③　環境管理の責任者を明確にしていますか。",null,null,null,null,null,null,null,null,"1：はい、0：いいえ",null,null,null,0,null,{"$f":"IF(AND(N149=0,N160=\"\"),1,0)","v":1},null,"","","","",null,null,1,14]
[null,null,"④　環境に関する中・長期の数値目標を設定していますか。",null,null,null,null,null,null,null,null,"1：はい、0：いいえ",null,null,null,0,null,{"$f":"IF(AND(N149=0,N161=\"\"),1,0)","v":1},null,"","","","",null,null,1,14]
[null,null,"⑤　環境に関する事故及び緊急事態を特定していますか。",null,null,null,null,null,null,null,null,"1：はい、0：いいえ",null,null,null,0,null,{"$f":"IF(AND(N149=0,N162=\"\"),1,0)","v":1},null,"","","","",null,null,1,14]
[null,null,"⑥　環境に関する法規制の順守を定期的に確認していますか。",null,null,null,null,null,null,null,null,"1：はい、0：いいえ",null,null,null,0,null,{"$f":"IF(AND(N149=0,N163=\"\"),1,0)","v":1},null,"",{"$f":"IF(ISERROR(R163-T163)=TRUE,\"\",R163-T163)","v":""},"","",null,null,1,14]
[null,null,"⑦　環境に関する内部監査を定期的に実施していますか。",null,null,null,null,null,null,null,null,"1：はい、0：いいえ",null,null,null,0,null,{"$f":"IF(AND(N149=0,N164=\"\"),1,0)","v":1},null,"","","","",null,null,1,14]
[null,null,"⑧　経営者が環境の取り組み状況を定期的にレビューしていますか。",null,null,null,null,null,null,null,null,"1：はい、0：いいえ",null,null,null,0,null,{"$f":"IF(AND(N149=0,N165=\"\"),1,0)","v":1},null,"","","","",null,null,1,14]
["２－２　環境負荷軽減活動及びパフォーマンスデータについて"]
[null,"（１）貴社（貴事業所）の当社への売上割合をご記入ください。（当社製品が係わるエネルギー使用量の割合を知るため）　",null,null,null,null,null,null,null,null,null,"例）　25%",null,null,null,null,null,{"$f":"IF(N167=\"\",1,0)","v":1},null,{"$f":"IF(S167=34,\"1\",\"\")","v":""},"",{"$f":"IF(S167=3,1,\"\")","v":""},{"$f":"IF(ISERROR(R167-V167)=TRUE,\"\",R167-V167)","v":""},null,null,1,14]
[null,"（２）貴社（貴事業所）の昨年度温室効果ガス排出量実績をご記入ください。（ Kg-CO2）",null,null,null,null,null,null,null,null,null,"例）115,000 Kg-CO2",null,null,null,null,null,{"$f":"IF(AND(N168=\"\",N169=\"\",N170=\"\"),1,0)","v":1},null,"","","","",null,null,1,14]
[null,"（３）①貴社（貴事業所）の昨年度電気使用実績量をご記入ください。（kwh）\n　　　※上記2-2（２）温室効果ガス排出量実績を記入の場合は回答不要です。",null,null,null,null,null,null,null,null,null,"例）　150,000kwh",null,null,null,null,null,{"$f":"IF(AND(N168=\"\",N169=\"\"),1,0)","v":1},null,"","","","",null,null,1,14]
[null,"（３）②貴社（貴事業所）の昨年度電力会社をご記入ください。（電力会社名）\n　　　※上記2-2（２）温室効果ガス排出量実績を記入の場合は回答不要です。",null,null,null,null,null,null,null,null,null,"例）　東京電力エナジーパートナー(株)",null,null,null,null,null,{"$f":"IF(AND(N168=\"\",N170=\"\"),1,0)","v":1},null,"","","","",null,null,1,14]
[null,"（4）納入品のＬＣＡを実施していますか。",null,null,null,null,null,null,null,null,null,"1：はい、0：いいえ",null,null,null,{"$f":"N171*1","v":0},null,{"$f":"IF(N171=\"\",1,0)","v":1},null,"","","","",null,null,1,14]
[null,"（５）貴社（貴事業所）の昨年度水使用実績量実績をご記入ください。（ｍ3）",null,null,null,null,null,null,null,null,null,"例）715m3",null,null,null,null,null,{"$f":"IF(N172=\"\",1,0)","v":1},null,"","","","",null,null,1,14]
[null,"（６）その他の環境負荷削減活動（大気汚染・水質汚濁・騒音振動・廃棄物等）を実施していますか。",null,null,null,null,null,null,null,null,null,"1：はい、0：いいえ",null,null,null,{"$f":"N173*1","v":0},null,{"$f":"IF(N173=\"\",1,0)","v":1},null,"","","","",null,null,1,14]
[null,"（７）上記2-2（6）で実施中の内容を下段にご記入ください。（\"1：はい\"の場合ご記入ください）",null,null,null,null,null,null,null,null,null,null,null,null,null,{"$f":"N174*1","v":0},null,{"$f":"IF(N174=\"\",1,0)","v":1},null,"","",{"$f":"IF(S174=3,1,\"\")","v":""},""]
[null,"（ご記入ください）",null,null,null,null,null,null,null,null,null,null,null,null,null,null,null,{"$f":"IF(AND(N173=1,D175=\"\"),1,0)","v":0},null,{"$f":"IF(S175=34,\"1\",\"\")","v":""},{"$f":"IF(ISERROR(R175-T175)=TRUE,\"\",R175-T175)","v":""},{"$f":"IF(S175=3,1,\"\")","v":""},{"$f":"IF(ISERROR(R175-V175)=TRUE,\"\",R175-V175)","v":""},null,null,1,4]
[null,"（８）過去３年間に環境法令違反はありますか。",null,null,null,null,null,null,null,null,null,"1：はい、0：いいえ",null,null,null,{"$f":"N176*1","v":0},null,{"$f":"IF(N176=\"\",1,0)","v":1},null,"","","","",null,null,1,14]
[null,"（９）上記2-2（8）の法令違反内容を下段にご記入ください。（\"1：はい\"の場合ご記入ください）",null,null,null,null,null,null,null,null,null,null,null,null,null,{"$f":"N177*1","v":0},null,{"$f":"IF(N177=\"\",1,0)","v":1},null,"","",{"$f":"IF(S177=3,1,\"\")","v":""},""]
[null,"（ご記入ください）",null,null,null,null,null,null,null,null,null,null,null,null,null,null,null,{"$f":"IF(AND(N176=1,D178=\"\"),1,0)","v":0},null,"","","","",null,null,1,4]
[null,"（10）従業員への環境教育の実施をしていますか。",null,null,null,null,null,null,null,null,null,"1：はい、0：いいえ",null,null,null,{"$f":"N179*1","v":0},null,{"$f":"IF(N179=\"\",1,0)","v":1},null,"","","","",null,null,1,14]
[null,"（11）上記2-2（10）で実施中の内容を下段にご記入ください。（\"1：はい\"の場合ご記入ください）",null,null,null,null,null,null,null,null,null,null,null,null,null,{"$f":"N180*1","v":0},null,{"$f":"IF(N180=\"\",1,0)","v":1},null,"","",{"$f":"IF(S180=3,1,\"\")","v":""},""]
[null,"（ご記入ください）",null,null,null,null,null,null,null,null,null,null,null,null,null,null,null,{"$f":"IF(AND(N179=1,D181=\"\"),1,0)","v":0},null,"","","","",null,null,1,4]
[null,"（1２）生物多様性の保全活動を実施していますか。",null,null,null,null,null,null,null,null,null,"1：はい、0：いいえ",null,null,null,{"$f":"N182*1","v":0},null,{"$f":"IF(N182=\"\",1,0)","v":1},null,"","","","",null,null,1,14]
[null,"（1３）上記2-2（12）で実施中の内容を下段にご記入ください。（\"1：はい\"の場合ご記入ください）",null,null,null,null,null,null,null,null,null,null,null,null,null,{"$f":"N183*1","v":0},null,{"$f":"IF(N183=\"\",1,0)","v":1},null,"","",{"$f":"IF(S183=3,1,\"\")","v":""},""]
[null,"（ご記入ください）",null,null,null,null,null,null,null,null,null,null,null,null,null,null,null,{"$f":"IF(AND(N182=1,D184=\"\"),1,0)","v":0},null,"","","","",null,null,1,4]
[null,"（14）環境報告書（環境レポート）等の情報公開をしていますか。",null,null,null,null,null,null,null,null,null,"1：はい、0：いいえ",null,null,null,{"$f":"N185*1","v":0},null,{"$f":"IF(N185=\"\",1,0)","v":1},null,{"$f":"IF(S185=34,\"1\",\"\")","v":""},{"$f":"IF(ISERROR(R185-T185)=TRUE,\"\",R185-T185)","v":""},"","",null,null,1,14]
[null,"（15）上記2-2（14）で公開しているホームページＵＲＬを下段にご記入ください。（\"1：はい\"の場合ご記入ください）。",null,null,null,null,null,null,null,null,null,null,null,null,null,{"$f":"N186*1","v":0},null,{"$f":"IF(N186=\"\",1,0)","v":1},null,"","",{"$f":"IF(S186=3,1,\"\")","v":""},""]
[null,"（ご記入ください）",null,null,null,null,null,null,null,null,null,null,null,null,null,{"$f":"SUM(P149:P185)","v":0},{"$f":"P167+Q168+Q186","v":0},{"$f":"IF(AND(N185=1,D187=\"\"),1,0)","v":0},null,"",{"$f":"IF(ISERROR(R187-T187)=TRUE,\"\",R187-T187)","v":""},{"$f":"IF(S187=3,1,\"\")","v":""},{"$f":"IF(ISERROR(R187-V187)=TRUE,\"\",R187-V187)","v":""},null,null,1,4]
["３．調達品の含有化学物質に関する調査",null,null,null,null,null,null,null,null,null,null,null,null,null,null,null,null,null,null,"",""]
[null,null,null,null,null,null,null,null,null,null,null,null,null,null,null,null,null,null,null,"",""]
["質　問　事　項",null,null,null,null,null,null,null,null,null,null,"回答選択肢",null,"回答欄",null,null,"含有化学物質",null,null,"",""]
["３－１ 貴社の納入品について　(商社様につきましてもご回答ください。)",null,null,null,null,null,null,null,null,null,null,null,null,null,null,null,null,null,null,"","",{"$f":"IF(S191=3,1,\"\")","v":""},{"$f":"IF(ISERROR(R191-V191)=TRUE,\"\",R191-V191)","v":""}]
[null,"（１）納入品は、材料、部品もしくは資材を調達・製造・加工した製品ですか。（加工のみも含む)",null,null,null,null,null,null,null,null,null,"1：はい、0：いいえ",null,null,null,{"$f":"N192*1","v":0},null,{"$f":"IF(N192=\"\",1,0)","v":1},null,"","",{"$f":"IF(S192=3,1,\"\")","v":""},{"$f":"IF(ISERROR(R192-V192)=TRUE,\"\",R192-V192)","v":""},null,null,1,14]
[null,"（２）納入品は、梱包材や緩衝材などの包装副資材ですか。",null,null,null,null,null,null,null,null,null,"1：はい、0：いいえ",null,null,null,0,null,1,null,"","","","",null,null,1,14]
[null,"（３）納入品は、工場設備・工場副資材ですか。",null,null,null,null,null,null,null,null,null,"1：はい、0：いいえ",null,null,null,0,null,1,null,{"$f":"IF(S194=34,\"1\",\"\")","v":""},"","","",null,null,1,14]
[null,"（４）納入品は、システムやデータ、ライセンス等、ソフトウェアですか。",null,null,null,null,null,null,null,null,null,"1：はい、0：いいえ",null,null,null,0,null,1,null,"","","","",null,null,1,14]
[null,"（５）納入品は、（１）～（４）以外の納入品はありますか。",null,null,null,null,null,null,null,null,null,"1：はい、0：いいえ",null,null,null,0,null,1,null,{"$f":"IF(S196=34,\"1\",\"\")","v":""},{"$f":"IF(ISERROR(R196-T196)=TRUE,\"\",R196-T196)","v":""},"","",null,null,1,14]
[null,"（６）具体的な納入品について記入ください",null,null,null,null,null,null,null,null,null,null,null,null,null,0,null,1,null,{"$f":"IF(S197=34,\"1\",\"\")","v":""},{"$f":"IF(ISERROR(R197-T197)=TRUE,\"\",R197-T197)","v":""},"","",null,null,1,14]
["３－２ 全般",null,null,null,null,null,null,null,null,null,null,null,null,null,null,null,"全般",null,null,{"$f":"IF(S198=34,\"1\",\"\")","v":""},{"$f":"IF(ISERROR(R198-T198)=TRUE,\"\",R198-T198)","v":""},{"$f":"IF(S198=3,1,\"\")","v":""},""]
[null,"（１）貴社方針として、製品含有化学物質管理(※1)に関する方針がありますか。",null,null,null,null,null,null,null,null,null,"1：はい、0：いいえ",null,null,null,{"$f":"N199*1","v":0},null,{"$f":"IF(N199=\"\",1,0)","v":1},null,"","","",{"$f":"IF(ISERROR(R199-V199)=TRUE,\"\",R199-V199)","v":""},null,null,1,14]
[null,"（２）製品含有化学物質管理のためのマネジメントシステムを構築していますか。",null,null,null,null,null,null,null,null,null,"1：はい、0：いいえ",null,null,null,{"$f":"N200*1","v":0},null,{"$f":"IF(N200=\"\",1,0)","v":1},null,{"$f":"IF(S200=34,\"1\",\"\")","v":""},"","",{"$f":"IF(ISERROR(R200-V200)=TRUE,\"\",R200-V200)","v":""},null,null,1,14]
[null,null,"（※1）製品含有化学管物質管理については、「JIS Z 7201:2017　製品含有化学物質管理の原則及び指針」又は",null,null,null,null,null,null,null,null,null,null,null,null,null,null,null,null,{"$f":"IF(S201=34,\"1\",\"\")","v":""},"","",{"$f":"IF(ISERROR(R201-V201)=TRUE,\"\",R201-V201)","v":""}]
[null,null,"　アーティクルマネジメント推進協議(JAMP)発行「製品含有化学物質管理ガイドライン」(下記URL)を参照。",null,null,null,null,null,null,null,null,null,null,null,null,null,null,null,null,{"$f":"IF(S202=34,\"1\",\"\")","v":""},"","",{"$f":"IF(ISERROR(R202-V202)=TRUE,\"\",R202-V202)","v":""}]
[null,null,null,null,"■JAMP 管理ガイドライン：","https://chemsherpa.net/docs/guidelines",null,null,null,null,null,null,null,null,null,null,null,null,null,{"$f":"IF(S203=34,\"1\",\"\")","v":""},"","",{"$f":"IF(ISERROR(R203-V203)=TRUE,\"\",R203-V203)","v":""}]
["３－３ 製品含有化学物質管理体制について",null,null,null,null,null,null,null,null,null,null,null,null,null,null,null,"含有化学物質管理体制"]
[null,"（１）製品含有化学物質に関する貴社の管理基準について教えてください。",null,null,null,null,null,null,null,null,null,null,null,null,null,null,null,null,null,{"$f":"IF(S205=34,\"1\",\"\")","v":""},{"$f":"IF(ISERROR(R205-T205)=TRUE,\"\",R205-T205)","v":""},{"$f":"IF(S205=3,1,\"\")","v":""},{"$f":"IF(ISERROR(R205-V205)=TRUE,\"\",R205-V205)","v":""}]
[null,null,"①　製品含有化学物質に関する管理基準は定められていますか。",null,null,null,null,null,null,null,null,"1：はい、0：いいえ",null,null,null,{"$f":"N206*1","v":0},{"$f":"N206","v":0},{"$f":"IF(N206=\"\",1,0)","v":1},null,"","","","",null,null,1,14]
[null,null,"②　①の基準は、弊社が要求している規制化学物質(※2)についても準拠できる基準となっていますか。",null,null,null,null,null,null,null,null,"1：はい、0：いいえ",null,null,null,{"$f":"N207*1","v":0},{"$f":"N207","v":0},1,null,"","","","",null,null,1,14]
[null,null,"（※2） 明電グループ グリーン調達化学物質リストを参照",null,null,null,null,null,null,null,null,null,null,null,null,null,null,null,null,"","","",""]
[null,null,null,null,"■グリーン調達化学物質リスト：","https://www.meidensha.co.jp/procure/proc_02/",null,null,null,null,null,null,null,null,null,null,null,null,null,"","","",""]
[null,"（２）貴社の組織の状況、管理体制について、教えてください。",null,null,null,null,null,null,null,null,null,null,null,null,null,null,null,null,null,"","","",""]
[null,null,"①　製品含有化学物質管理に関する体制、部門、役割は明確に定められていますか。",null,null,null,null,null,null,null,null,"1：はい、0：いいえ",null,null,null,{"$f":"N211*1","v":0},{"$f":"N211","v":0},1,null,{"$f":"IF(S211=34,\"1\",\"\")","v":""},{"$f":"IF(ISERROR(R211-T211)=TRUE,\"\",R211-T211)","v":""},{"$f":"IF(S211=3,1,\"\")","v":""},"",null,null,1,14]
[null,null,"②　化学物質情報について、貴社の担当者(問合せ窓口)は明確になっていますか。",null,null,null,null,null,null,null,null,"1：はい、0：いいえ",null,null,null,{"$f":"N212*1","v":0},{"$f":"N212","v":0},1,null,"","","","",null,null,1,14]
[null,null,"③　②で「はい」の場合、部署名及び担当者名を記入してください。",null,null,null,null,null,null,null,null,null,null,null,null,null,null,{"$f":"IF(AND(N212=1,N213=\"\"),1,0)","v":0},null,"","","","",null,null,1,14]
[null,null,"④　弊社の製品含有化学物質管理についての要求事項(※3)に対し、対応できる体制が整っていますか。",null,null,null,null,null,null,null,null,"1：はい、0：いいえ",null,null,null,{"$f":"N214*1","v":0},{"$f":"N214","v":0},{"$f":"IF(N214=\"\",1,0)","v":1},null,"","","","",null,null,1,14]
[null,null,"（※3） グリーン調達基準書の要求事項を参照",null,null,null,null,null,null,null,null,null,null,null,null,null,null,null,null,"","","",""]
[null,null,null,"■グリーン調達基準書：","https://www.meidensha.co.jp/procure/proc_02/",null,null,null,null,null,null,null,null,null,null,null,null,null,null,"","","",""]
[null,"（３）各工程(開発から出荷まで)における製品含有化学物質管理状況について、教えてください。",null,null,null,null,null,null,null,null,null,null,null,null,null,null,null,null,null,"","","",""]
[null,null,"①　部品・材料の選定時、その部品・材料が関連法規制及び弊社の要求事項に適合しているかを確認していますか。",null,null,null,null,null,null,null,null,"1：はい、0：いいえ、－:非該当",null,null,null,{"$f":"IF(N218<>\"-\",N218*1,0)","v":0},{"$f":"N218","v":0},1,null,"","",{"$f":"IF(S218=3,1,\"\")","v":""},"",null,null,1,14]
[null,null,"②　部品・材料の購入、受入れ時に、その購入品の製品含有化学物質情報(chemSHERPA-AI・CI、JAMAシート、IMDSなど）を入手していますか。",null,null,null,null,null,null,null,null,"1：はい、0：いいえ、－:非該当",null,null,null,{"$f":"IF(N219<>\"-\",N219*1,0)","v":0},{"$f":"N219","v":0},1,null,"","","","",null,null,1,14]
[null,null,"③　取り扱っている製品の含有化学物質管理情報について、正確で確実な情報伝達は正しく行えていますか。",null,null,null,null,null,null,null,null,"1：はい、0：いいえ",null,null,null,{"$f":"N220*1","v":0},{"$f":"N220","v":0},1,null,"","","","",null,null,1,14]
["３－４ 製品含有化学物質調査への対応について",null,null,null,null,null,null,null,null,null,null,null,null,null,null,null,"化学物質調査対応",null,null,"","","",""]
[null,"（１）弊社への納入品について、製品含有化学物質情報(chemSHERPA-AI・CI、JAMAシート、IMDSなど）を作成し、提出できますか。",null,null,null,null,null,null,null,null,null,"1：はい、0：いいえ、－:非該当",null,null,null,{"$f":"IF(N222<>\"-\",N222*1,0)","v":0},{"$f":"N222","v":0},1,null,"","","","",null,null,1,14]
[null,"（２）弊社から調査依頼があった場合、約1か月以内に製品含有化学物質情報の収集、作成及び提出できる体制が整っていますか。",null,null,null,null,null,null,null,null,null,"1：はい、0：いいえ",null,null,null,{"$f":"N223*1","v":0},{"$f":"N223","v":0},1,null,"","","","",null,null,1,14]
[null,null,null,null,null,null,null,null,null,null,null,null,null,null,null,{"$f":"SUM(P192:P196)+SUM(P199:P212)+SUM(P214:P223)","v":0},{"$f":"SUM(P198:P223)","v":0}]
[]
[null,null,null,null,null,null,null,null,null,null,null,null,null,null,null,{"$f":"P187+P224","v":0},null,{"$f":"COUNTIF(R3:R223,1)","v":143},null,null,{"$f":"COUNTIF(U3:U223,0)","v":0},{"$f":"COUNTIF(V3:V223,1)","v":0},{"$f":"COUNTIF(W3:W223,0)","v":0}]
[null,null,null,null,null,null,null,null,null,null,null,null,null,null,null,{"$f":"P200+P214+P223","v":0},"Lank",null,null,null,"V226未入力カウント数"]
[null,"自己採点ボタンを押し、評価レベルをご確認願います。"]
[null,null,null,null,null,null,null,null,null,null,null,null,null,null,null,null,"項目","得点","配点",null,"評価"]
[null,null,null,null,null,null,null,null,null,null,null,null,null,null,null,null,"人権・労働",{"$f":"Q37+Q46","v":0},10,{"$f":"R230/S230","v":0},{"$f":"T230*5","v":0}]
[]
[null,null,null,null,null,null,null,null,null,null,null,null,null,null,null,null,"安全衛生",{"$f":"Q55+Q64","v":0},10,{"$f":"R232/S232","v":0},{"$f":"T232*5","v":0}]
[null,"＜各調査の評価レベル＞"]
[null,null,null,null,null,null,null,null,null,null,null,null,null,null,null,null,"公正取引・論理",{"$f":"Q73+Q82+Q91+Q100+Q109","v":0},25,{"$f":"R234/S234","v":0},0]
[null,"・サステナビリティ活動評価（「サステナビリティ活動」および「環境保全活動への取り組み」）",null,null,null,null,null,null,null,null,null,null,null,null,null,null,"品質・安全",{"$f":"Q118","v":0},5,0,0]
[null,null,"評価レベル","判定","内容",null,null,null,null,null,null,null,null,null,null,null,"情報ｾｷｭﾘﾃｨ",{"$f":"Q125","v":0},5,0,0]
[null,null,"レベルA","◎","取引継続：優先度高（サステナビリティ及び環境に関する取り組みがとても優れています。引き続き、よろしくお願いします。）",null,null,null,null,null,null,null,null,null,null,null,"社会貢献",{"$f":"Q143","v":0},5,0,0]
[null,null,"レベルB","○","取引継続：優先度中（サステナビリティ及び環境に関する取り組みが優れています。引き続き、よろしくお願いします。）",null,null,null,null,null,null,null,null,null,null,null,"bcp",{"$f":"Q134","v":0},5,0,0]
[null,null,"レベルC","○","取引継続：優先度低（サステナビリティ及び環境に関する取り組みが実施されています。引き続き、よろしくお願いします。）",null,null,null,null,null,null,null,null,null,null,null,"環境",{"$f":"P226","v":0},35,0,{"$f":"T239*5","v":0}]
[null,null,"レベルD","△","条件付取引（サステナビリティ及び環境に関する取り組みが十分ではありません。改善に向けた努力をお願いします。）",null,null,null,null,null,null,null,null,null,null,null,"サステナビリティ",{"$f":"SUM(R230:R238)","v":0},{"$f":"SUM(S230:S238)","v":65}]
[null,null,"レベルE","×","取引不可",null,null,null,null,null,null,null,null,null,null,null,"合計",{"$f":"R239+R240","v":0},{"$f":"S239+S240","v":100}]
[null,"・調達品の含有化学物質に関する対応レベル",null,null,null,null,null,null,null,{"$f":"P222","v":0}]
[null,null,"評価レベル","判定","内容"]
[null,null,"レベル1","◎","取引継続：優先度高（化学物質管理の体制が評価でき、弊社が要求する各国化学物質規制（欧州RoHS指令等）への対応が出来ています。）",null,null,null,null,null,null,null,null,null,null,null,"項目","評価"]
[null,null,"レベル2","○","取引継続：優先度中（弊社が要求する各国化学物質規制（欧州RoHS指令等）への対応が出来ています。）",null,null,null,null,null,null,null,null,null,null,null,"人権・労働",{"$f":"U230","v":0}]
[null,null,"レベル3","△","条件付取引（弊社が要求する化学物質規制（欧州RoHS指令等）への対応に不備があります。改善に向けた努力をお願いします。）",null,null,null,null,null,null,null,null,null,null,null,"安全衛生",{"$f":"U232","v":0}]
[null,null,null,null,null,null,null,null,null,null,null,null,null,null,null,null,"公正取引・論理",{"$f":"U234","v":0}]
[null,null,"自己採点の結果が\"レベルD”以下または”レベル3”の場合、以下質問４に、今後の取り組み強化に向けた方針、スケジュールを記載願います。",null,null,null,null,null,null,null,null,null,null,null,null,null,"品質・安全",{"$f":"U235","v":0}]
[null,null,null,null,null,null,null,null,null,null,null,null,null,null,null,null,"情報ｾｷｭﾘﾃｨ",{"$f":"U236","v":0}]
[null,null,null,null,null,null,null,null,null,null,null,null,null,null,null,null,"社会貢献",{"$f":"U237","v":0}]
["４．今後の取組強化に向けた方針、スケジュール",null,null,null,null,null,null,null,null,null,null,null,null,null,null,null,"環境",{"$f":"U239","v":0}]
[null,null,null,null,null,null,null,null,null,null,null,null,null,null,null,{"$f":"N252*1","v":0},"ＢＣＰ",{"$f":"U238","v":0},null,null,null,{"$f":"IF(S253=3,1,\"\")","v":""},{"$f":"IF(ISERROR(R253-V252)=TRUE,\"\",R253-V252)","v":""}]
[null,null,null,null,null,null,null,null,null,null,null,null,null,null,null,null,null,{"$f":"IF(N252=\"\",1,0)","v":1},34,{"$f":"IF(S253=34,\"1\",\"\")","v":"1"},{"$f":"IF(ISERROR(R253-T253)=TRUE,\"\",R253-T253)","v":0}]
[]
[null,"調査にご協力いただきまして、ありがとうございました。「電子メール」等の電子データにて調査票をご提出願います。"]
[]
[null,"今後、各国の環境関連法規制が変わった場合、再調させて頂く可能性がございますので、予めご了承下さい。"]
[null,"別途、納入品に含有される化学物質調査もお願いすることがありますので、その際にもご協力をお願いします。"]
[]
[null,"メールによるお問い合わせは、貴社に調査をお願い致しました明電舎・調達本部担当窓口、または調達本部までお願い致します。"]

{"sheet":"情報セキュリティ自社診断票","index":1,"n_rows":40,"n_cols":11,"rows_kept":40,"cut":false,"hidden":false,"merged":[[31,2,31,3],[32,2,32,3],[35,0,35,8],[36,0,36,8],[27,0,32,0],[33,4,33,6],[29,2,29,3],[28,2,28,3],[27,2,27,3],[30,2,30,3],[16,2,16,3],[23,2,23,3],[24,2,24,3],[25,2,25,3],[26,2,26,3],[18,2,18,3],[19,2,19,3],[20,2,20,3],[21,2,21,3],[22,2,22,3],[4,6,4,7],[13,2,13,3],[12,2,12,3],[14,2,14,3],[15,2,15,3],[3,6,3,7],[17,2,17,3],[1,0,1,8],[3,1,3,2],[4,1,4,2],[6,0,7,0],[6,1,7,1],[6,2,7,3],[6,4,6,7],[6,8,7,8],[9,0,12,0],[14,0,25,0],[8,2,8,3],[9,2,9,3],[10,2,10,3],[11,2,11,3]]}
[]
["　情報セキュリティ自社診断票　",null,null,null,null,null,null,null,null,null,"入力ﾁｪｯｸ"]
[null,null,null,null,null,null,null,null,"ここから始めてください↓　"]
["会社名",{"$f":"IF(調査票!D3=\"\",\"\",調査票!D3)","v":""},null,null,null,"診断事項","回答選択肢",null,"回答欄"]
["記入日",null,null,null,null,"開始","1.はい　　　0.いいえ",null,0,null,{"$f":"IF(B5=\"\",1,0)","v":1}]
[]
["診断項目","№","診断内容",null,"チェック",null,null,null,"回答欄"]
[null,null,null,null,"実施して\nいる","一部実施\nしている","実施して\nいない","わから\nない"]
["Part1",1,"パソコンやスマホなど情報機器のOSやソフトウェアは常に最新の状態にしていますか？",null,4,2,0,-1,null,null,{"$f":"IF(I9=\"\",1,0)","v":1}]
["基本的対策",2,"パソコンやスマホなどにはウイルス対策ソフトを導入し、ウイルス定義ファイル（※１）は最新の状態にしていますか？",null,4,2,0,-1,null,null,{"$f":"IF(I10=\"\",1,0)","v":1}]
[null,3,"パスワードは破られにくい「長く」「複雑な」パスワードを設定していますか？",null,4,2,0,-1,null,null,1]
[null,4,"重要情報（※２）に対する適切なアクセス制御を行っていますか？",null,4,2,0,-1,null,null,1]
[null,5,"新たな脅威や攻撃の手口を知り対策を社内共有する仕組みはできていますか？",null,4,2,0,-1,null,null,1]
["Part2",6,"電子メールの添付ファイルや本文中のＵＲＬリンクを介したウイルス感染に気をつけていますか？",null,4,2,0,-1,null,null,1]
["従業員としての対策",7,"電子メールやＦＡＸの宛先の送信ミスを防ぐ取り組みを実施していますか？",null,4,2,0,-1,null,null,1]
[null,8,"重要情報は電子メール本文に書くのではなく、添付するファイルに書いてパスワードなどで保護していますか？",null,4,2,0,-1,null,null,1]
[null,9,"無線ＬＡＮを安全に使うために適切な暗号化方式を設定するなどの対策をしていますか？",null,4,2,0,-1,null,null,1]
[null,10,"インターネットを介したウイルス感染やＳＮＳへの書き込みなどのトラブルへの対策をしていますか？",null,4,2,0,-1,null,null,1]
[null,11,"パソコンやサーバーのウイルス感染、故障や誤操作による重要情報の消失に備えてバックアップを取得していますか？",null,4,2,0,-1,null,null,1]
[null,12,"紛失や盗難を防止するため、重要情報が記載された書類や電子媒体は机上に放置せず、書庫などに安全に保管していますか？",null,4,2,0,-1,null,null,1]
[null,13,"重要情報が記載された書類や電子媒体を持ち出す時は、盗難や紛失の対策をしていますか？",null,4,2,0,-1,null,null,1]
[null,14,"離席時にパソコン画面の覗き見や勝手な操作ができないようにしていますか？",null,4,2,0,-1,null,null,1]
[null,15,"関係者以外の事務所への立ち入りを制限していますか？",null,4,2,0,-1,null,null,1]
[null,16,"退社時にノートパソコンや備品を施錠保管するなど盗難防止対策をしていますか？",null,4,2,0,-1,null,null,1]
[null,17,"事務所が無人になる時の施錠忘れ対策を実施していますか？",null,4,2,0,-1,null,null,1]
[null,18,"重要情報が記載された書類や重要なデータが保管された媒体を破棄する時は、復元できないようにしていますか？",null,4,2,0,-1,null,null,1]
["Part3",19,"従業員に守秘義務を理解してもらい、業務上知り得た情報を外部に漏らさないなどのルールを守らせていますか？",null,4,2,0,-1,null,null,1]
["組織としての対策",20,"従業員にセキュリティに関する教育や注意喚起を行っていますか？",null,4,2,0,-1,null,null,1]
[null,21,"個人所有の情報機器を業務で利用する場合のセキュリティ対策を明確にしていますか？",null,4,2,0,-1,null,null,1]
[null,22,"重要情報の授受を伴う取引先との契約書には、秘密保持条項を規定していますか？",null,4,2,0,-1,null,null,1]
[null,23,"クラウドサービスやウェブサイトの運用等で利用する外部サービスは、安全・信頼性を把握して選定していますか？",null,4,2,0,-1,null,null,{"$f":"IF(I31=\"\",1,0)","v":1}]
[null,24,"セキュリティ事故が発生した場合に備え、緊急時の体制整備や対応手順を作成するなど準備をしていますか？",null,4,2,0,-1,null,null,1]
[null,25,"情報セキュリティ対策（上記１～２４など）をルール化し、従業員に明示していますか？",null,4,2,0,-1,null,null,1]
[null,null,null,null,null,null,null,"合計",{"$f":"SUM(I9:I33)","v":0},null,{"$f":"MAX(K4:K33)","v":1}]
[null,null,null,null,null,null,null,null,null,null,"評価"]
["※１　コンピュータウイルスを検出するためのデータベースファイル「パターンファイル」とも呼ばれます。"]
["※２　重要情報とは営業秘密など事業に必要で組織にとって価値のある情報や顧客や、従業員の個人情報など管理責任を伴う情報のことです。"]
[]
["出典：ＩＰＡ「新5分でできる情報セキュリティ自社診断」"]
["　　　　URL：https://www.ipa.go.jp/files/000055848.pdf"]